Cogmind - Beta 14 @@@ ROGUE MODE // 2024.11.21 @ 01:04:12 Player: Kate+Gabe4evr Result: Core destroyed Performance ------------- Evolutions (1) 500 Regions Visited (5) 1000 Robots Destroyed (43) 215 Value Destroyed (1182) 1182 Prototype IDs (2) 40 Alien Tech Used (0) 0 Bonus (33) 33 TOTAL SCORE: 2970 Bonus ------- Follower Combat Kills 33 Cogmind --------- Core Integrity 0/400 Matter 254/300 Energy 100/100 System Corruption 2% Temperature Critical (510) Movement Core (50) Location -9/Recycling Parts ------- > --- POWER (1) -------- (None) > --- PROPULSION (4) --- (None) > --- UTILITY (2) ------ Scrap Engine > --- WEAPON (2) ------- (None) > --- INVENTORY (5) ---- Aluminum Leg Cooling System Improved Targeting Computer Heavy Hammer Peak State ------------ > --- POWER ------------ Heavy Ion Engine > --- PROPULSION ------- Aluminum Leg Aluminum Leg Aluminum Leg Improved Aluminum Leg > --- UTILITY ---------- Scrap Engine > --- WEAPON ----------- Heavy Battle Rifle Rocket Launcher > --- INVENTORY -------- Aluminum Leg Cooling System Improved Targeting Computer Heavy Hammer [Rating: 32] Favorites ----------- Power Ion Engine Engine Ion Engine Propulsion Aluminum Leg Leg Aluminum Leg Utility Large Storage Unit Device Scrap Engine Storage Large Storage Unit Protection Hardened Light Armor Plating Weapon EM Shotgun Energy Gun EM Shotgun Ballistic Gun Heavy Battle Rifle Launcher Rocket Launcher Build | -11 -10 -10 -9 -9 -9 ------- Run | Yrd Mat Min Mat Sto Rec Slots Evolved 2 | . . . 2 . . Power . | . . . . . . Propulsion 2 | . . . 2 . . Utility . | . . . . . . Weapon . | . . . . . . Parts Attached 40 | 7 7 5 7 10 4 Power 7 | 2 1 1 1 2 . Engine 7 | 2 1 1 1 2 . Core . | . . . . . . Reactor . | . . . . . . Propulsion 14 | 2 2 1 3 5 1 Treads . | . . . . . . Leg 14 | 2 2 1 3 5 1 Wheel . | . . . . . . Hover . | . . . . . . Flight . | . . . . . . Utility 8 | 1 2 1 2 1 1 Device 1 | . . . . . 1 Storage 3 | 1 1 . 1 . . Processor . | . . . . . . Hackware . | . . . . . . Protection 4 | . 1 1 1 1 . Artifact . | . . . . . . Weapon 11 | 2 2 2 1 2 2 Energy Gun 7 | 2 2 1 1 1 . Energy Cannon . | . . . . . . Ballistic Gun 2 | . . . . 1 1 Ballistic Cannon . | . . . . . . Launcher 2 | . . 1 . . 1 Special Weapon . | . . . . . . Impact Weapon . | . . . . . . Slashing Weapon . | . . . . . . Piercing Weapon . | . . . . . . Special Melee Weapon . | . . . . . . Unidentified Prototypes 2 | . . . . 1 1 Parts Lost 14 | . 1 3 1 2 7 Power 3 | . 1 1 . . 1 Propulsion 6 | . . . 1 1 4 Utility . | . . . . . . Weapon 5 | . . 2 . 1 2 Highest Loss Streak 7 | . 1 2 1 2 7 To Critical Strikes . | . . . . . . Average Slot Usage (%) 98 | . 93 99 100 99 93 Engine 12 | . 13 13 11 11 10 Leg 36 | . 28 28 44 43 42 Storage 12 | . 14 14 11 11 10 Protection 11 | . 8 14 11 11 10 Energy Gun 19 | . 27 27 22 11 8 Ballistic Gun 3 | . . . . 9 9 Peak Build Rating 32 | 6 10 11 15 20 32 Average Rating 13 | 4 8 10 13 18 19 On Entrance 10 | . 6 10 9 15 20 Naked Turns . | . . . . . . Heaviest Build 40 | 14 32 32 40 40 40 Greatest Support 43 | 20 20 20 40 43 43 Greatest Overweight (x) 2 | 2 1 1 . 1 . Average Overweight (x) . | . . 1 . . . Largest Inventory Capacity 15 | 8 15 15 15 15 15 Average Capacity 14 | 6 11 15 15 15 14 Most Carried 15 | 2 9 15 15 15 15 Average Carried 12 | 1 6 12 14 14 14 Final Capacity 15 | 8 15 15 15 15 5 Final Carried 15 | 2 9 15 15 15 4 Class Distribution -------------------- 64% | Mutant 20% | Commander-Mutant 14% | Scavenger-Mutant Dominant Class ---------------- Mutant | -10/Materials Mutant | -10/Mines Scavenger-Mutant | -9/Materials Mutant | -9/Storage Commander-Mutant | -9/Recycling Resources | -11 -10 -10 -9 -9 -9 ----------- Run | Yrd Mat Min Mat Sto Rec Matter Collected 707 | 235 89 56 88 212 27 Remotely . | . . . . . . Salvage Created 1722 | . 303 330 217 668 204 Parts 102 | . 15 14 20 45 8 Haulers Intercepted . | . . . . . . Recyclers Shooed 2 | . 1 . . 1 . Parts Field Recycled . | . . . . . . Retrieved Matter . | . . . . . . Parts Self-Destructed . | . . . . . . Prevented . | . . . . . . Kills | -11 -10 -10 -9 -9 -9 ------- Run | Yrd Mat Min Mat Sto Rec Combat Hostiles Destroyed 34 | . 7 6 3 16 2 Guns 30 | . 6 4 3 16 1 AOE 4 | . 1 2 . . 1 Classes Destroyed 9 | . 1 4 2 . 2 Worker 2 | . . . 1 1 . Builder 1 | . . . . . 1 Tunneler 2 | . . 2 . . . Recycler 3 | . . 1 . 1 1 Watcher 1 | . . . 1 . . Swarmer 8 | . . 2 . 6 . Grunt 16 | . 7 2 . 7 . Sentry 9 | . . 2 3 3 1 Scrapper 1 | . . . . . 1 Best Kill Streak 7 | . 4 3 2 7 2 Combat Bots Only 6 | . 4 2 2 6 1 Max Kills in Single Turn 2 | . 1 2 1 2 2 Gunslinging 1 | . . . . 1 . Exploded 1 | . 1 1 . . 1 Melee . | . . . . . . Uniques/NPCs Destroyed . | . . . . . . Combat | -11 -10 -10 -9 -9 -9 -------- Run | Yrd Mat Min Mat Sto Rec Hostile Shots Fired 175 | . 35 24 18 32 66 Missed 26 | . 9 5 2 4 6 Damage Taken 2233 | . 346 232 279 345 1031 Core 513 | . 71 41 70 42 289 Absorbed by Shields . | . . . . . . Redirected to Shielding 37 | . 19 18 . . . Core Remaining (%) 77 | 100 . 55 . . . Volleys Fired 89 | . 19 14 12 36 8 Largest 2 | . 2 2 2 2 2 Hottest 100 | . 100 90 90 90 78 Shots Fired 169 | . 38 22 24 70 15 Gun 161 | . 38 18 24 70 11 Cannon . | . . . . . . Launcher 8 | . . 4 . . 4 Special . | . . . . . . Kinetic 42 | . . . . 34 8 Thermal 12 | . 12 . . . . Explosive 8 | . . 4 . . 4 Electromagnetic 107 | . 26 18 24 36 3 Robot Hit Streak 11 | . 9 10 11 9 6 Robot Miss Streak 5 | . 5 2 4 4 2 Penetration Max . | . . . . . . Secondary Targets 1 | . . . . 1 . Max Gunslinging Chain 1 | . . . . 1 . Shots Hit Robots 121 | . 29 17 19 46 10 Core Hits 87 | . 18 17 11 31 10 Critical Kills . | . . . . . . Critical Parts Destroyed . | . . . . . . Critical Strikes . | . . . . . . Melee Attacks . | . . . . . . Impact . | . . . . . . Slashing . | . . . . . . Piercing . | . . . . . . Sneak Attacks . | . . . . . . Combat Hostiles . | . . . . . . Follow-up Attacks . | . . . . . . Damage Inflicted 2435 | 11 437 509 283 820 375 Guns 1750 | . 357 212 257 796 128 Cannons . | . . . . . . Explosions 645 | . 80 297 26 . 242 Melee . | . . . . . . Ramming 40 | 11 . . . 24 5 Kinetic 550 | . . . . 432 118 Thermal 279 | . 156 97 26 . . Explosive 442 | . . 200 . . 242 Electromagnetic 1124 | . 281 212 257 364 10 Impact . | . . . . . . Slashing . | . . . . . . Piercing . | . . . . . . Highest Corruption 2 | . . . . 2 2 Average Corruption 1 | . . . . 1 2 Corruption Purged . | . . . . . . Corruption Blocked . | . . . . . . Effects 6 | . . . . 1 5 Message Errors 2 | . . . . 1 1 Matter Fused 1 | . . . . . 1 Heat Flow Errors 1 | . . . . . 1 Energy Discharges 1 | . . . . . 1 Data Loss (minor) 1 | . . . . . 1 Overload Shots . | . . . . . . Overflow Damage 49 | . . 43 . . 6 Projectiles . | . . . . . . Explosions 49 | . . 43 . . 6 Melee . | . . . . . . Knockbacks . | . . . . . . Impact . | . . . . . . Kinetic . | . . . . . . Secondary . | . . . . . . Self-Inflicted Damage 106 | . . . 41 . 65 Shots 3 | . . . 1 . 2 Rammed 2 | . . . . . 2 Targets Rammed 8 | 2 . . . 4 2 Kicked 6 | 2 . . . 4 . Crushed . | . . . . . . Highest Temperature 510 | . 374 147 228 265 510 Average Temperature 96 | . 134 40 93 85 131 Received Heat Transfer 953 | . 198 54 90 75 536 Effects 5 | . 4 . . . 1 Shutdowns 1 | . 1 . . . . Energy Bleed 1 | . 1 . . . . Interference 1 | . 1 . . . . Damage (minor) 1 | . 1 . . . . Damage (core) 1 | . . . . . 1 Siege Activations . | . . . . . . Robots Corrupted . | . . . . . . Combat Hostiles . | . . . . . . Parts Fried 2 | . . . 2 . . Impact Corruptions . | . . . . . . Robots Melted . | . . . . . . Combat Hostiles . | . . . . . . Parts Melted 1 | . . . . . 1 Heat Transferred 522 | . 372 100 50 . . Parts Sabotaged . | . . . . . . Parts Stolen . | . . . . . . Parts Stripped . | . . . . . . Power Chain Reactions 3 | . 1 1 1 . . Alert | -11 -10 -10 -9 -9 -9 ------- Run | Yrd Mat Min Mat Sto Rec Peak Influence 354 | . 218 118 198 354 98 Initial 84 | . . 84 45 14 48 Average 107 | . 96 51 130 197 52 Maximum Alert Level 1 | . 1 . . 1 . Low Security (%) 85 | 100 86 100 100 54 100 Level 1 14 | . 13 . . 45 . Level 2 . | . . . . . . Level 3 . | . . . . . . Level 4 . | . . . . . . Level 5 . | . . . . . . High Security . | . . . . . . Max Security . | . . . . . . Squads Dispatched 6 | . 2 . 1 3 . Investigation 1 | . . . . 1 . Extermination . | . . . . . . Reinforcement 5 | . 2 . 1 2 . Assault . | . . . . . . Garrison . | . . . . . . Intercept . | . . . . . . Searches Triggered . | . . . . . . Construction Impeded . | . . . . . . Haulers Reinforced . | . . . . . . Active Scanning Responses . | . . . . . . Cargo Convoy Interrupts . | . . . . . . Stealth | -11 -10 -10 -9 -9 -9 --------- Run | Yrd Mat Min Mat Sto Rec Distress Signals 5 | . 1 . 1 3 . Communications Jammed . | . . . . . . Distress Signals . | . . . . . . Times Spotted 63 | . 12 7 8 30 6 Peak Tracking Total 8 | . 5 2 4 8 5 Tactical Retreats 1 | . . . 1 . . Traps | -11 -10 -10 -9 -9 -9 ------- Run | Yrd Mat Min Mat Sto Rec Traps Triggered 4 | . . . . 4 . Indirectly . | . . . . . . Trap Hack Attempts . | . . . . . . Triggered . | . . . . . . Disarmed . | . . . . . . Reprogrammed . | . . . . . . Reused . | . . . . . . Traps Extracted . | . . . . . . Installed . | . . . . . . Triggered . | . . . . . . Machines | -11 -10 -10 -9 -9 -9 ---------- Run | Yrd Mat Min Mat Sto Rec Machines Disabled 3 | . . . . 1 2 Max in Single Turn 1 | . . . . 1 1 Garrison Access 1 | . . . . 1 . Machines Repaired . | . . . . . . Machines Dismantled . | . . . . . . Machines Sabotaged . | . . . . . . Overloaded Fab Kills . | . . . . . . Hacking | -11 -10 -10 -9 -9 -9 --------- Run | Yrd Mat Min Mat Sto Rec Machines Accessed 5 | . . . 1 3 1 Terminals 3 | . . . 1 2 . Fabricators . | . . . . . . Repair Stations . | . . . . . . Recycling Units . | . . . . . . Scanalyzers . | . . . . . . Garrison Access 1 | . . . . 1 . Total Hacks 13 | . . . 2 4 7 Successful 12 | . . . 2 3 7 Failed 1 | . . . . 1 . Catastrophic . | . . . . . . Database Lockouts . | . . . . . . Manual . | . . . . . . Terminals 4 | . . . 2 2 . Fabricators . | . . . . . . Repair Stations . | . . . . . . Recycling Units . | . . . . . . Scanalyzers . | . . . . . . Garrison Access 2 | . . . . 2 . Terminal Hacks 11 | . . . 2 2 7 Record 7 | . . . 2 . 5 Open Door 2 | . . . . 2 . Release Object 2 | . . . . . 2 Fabricator Hacks . | . . . . . . Repair Station Hacks . | . . . . . . Recycling Unit Hacks . | . . . . . . Scanalyzer . | . . . . . . Garrison Access Hacks 1 | . . . . 1 . Seal Access 1 | . . . . 1 . Unauthorized Hacks . | . . . . . . Terminals . | . . . . . . Fabricators . | . . . . . . Repair Stations . | . . . . . . Recycling Units . | . . . . . . Scanalyzers . | . . . . . . Garrison Access . | . . . . . . Data Cores Recovered . | . . . . . . Used . | . . . . . . Hacking Detections 1 | . . . . 1 . Full Trace Events . | . . . . . . Feedback Events . | . . . . . . Feedback Blocked . | . . . . . . Robot Schematics Acquired . | . . . . . . Robots Built . | . . . . . . Authchips . | . . . . . . Time . | . . . . . . Total Robot Build Rating . | . . . . . . Part Schematics Acquired . | . . . . . . Parts Built . | . . . . . . Authchips . | . . . . . . Time . | . . . . . . Total Part Build Rating . | . . . . . . Parts Repaired . | . . . . . . Time . | . . . . . . Parts Recycled . | . . . . . . Recycled Matter . | . . . . . . Retrieved Matter . | . . . . . . Retrieved Components . | . . . . . . Parts Scanalyzed . | . . . . . . Part Schematics Acquired . | . . . . . . Parts Damaged . | . . . . . . Bothacking | -11 -10 -10 -9 -9 -9 ------------ Run | Yrd Mat Min Mat Sto Rec Used RIF Installer . | . . . . . . Robots Hacked . | . . . . . . Non-combat . | . . . . . . Combat . | . . . . . . Robot Hacks Applied . | . . . . . . Relay Couplers Released 1 | . . . . 1 . Machine Destruction 1 | . . . . 1 . Fabnet Peak Effective % . | . . . . . . Robots Rewired . | . . . . . . Allies Hacked . | . . . . . . Hacks Repelled . | . . . . . . Allies | -11 -10 -10 -9 -9 -9 -------- Run | Yrd Mat Min Mat Sto Rec Total Allies 10 | . . . . 10 . Largest Group 10 | . . . . 10 9 Highest-Rated Group 88 | . . . . 88 80 Highest-Rated Ally 16 | . . . . 16 16 Total Orders . | . . . . . . Ally Attacks 31 | . . . . 9 22 Total Damage 235 | . . . . 41 194 Kills 2 | . . . . 1 1 Allies Corrupted 1 | . . . . 1 . Allies Melted . | . . . . . . Intel | -11 -10 -10 -9 -9 -9 ------- Run | Yrd Mat Min Mat Sto Rec Robot Analysis Total . | . . . . . . Derelict Logs Recovered 2 | . . 2 . . . Drone Launches . | . . . . . . Drone Recoveries . | . . . . . . Exploration | -11 -10 -10 -9 -9 -9 ------------- Run | Yrd Mat Min Mat Sto Rec Turns Passed 3409 | 56 351 1168 465 974 395 Spaces Moved 1974 | 37 167 570 268 640 292 Core 16 | 10 . . . . 6 Treads . | . . . . . . Legs 1958 | 27 167 570 268 640 286 Wheels . | . . . . . . Hover . | . . . . . . Flight . | . . . . . . Fastest Speed 50 | 50 120 190 120 120 50 Average Speed 142 | 115 153 190 120 120 118 Slowest Speed 190 | 150 190 190 120 190 120 Overloaded Moves . | . . . . . . Propulsion Burnouts . | . . . . . . Robots Hopped . | . . . . . . Cave-ins Triggered . | . . . . . . Exploration Rate (%) 52 | 3 36 98 27 93 59 Regions Visited 5 Branch Regions 3 Pre-discovered Areas 2 | . . 2 . . . Known Exits Taken 1 | . . . 1 . . Unknown Exits Taken 4 | 1 1 1 . 1 . Scrap Searched 2 | . . 2 . . . Spaces Dug . | . . . . . . Terrain Destroyed 55 | . 2 46 5 1 1 Melee . | . . . . . . Projectile 1 | . . . . 1 . AOE 54 | . 2 46 5 . 1 Terrain Rammed . | . . . . . . Walls Destroyed . | . . . . . . Machines Disabled . | . . . . . . Actions | -11 -10 -10 -9 -9 -9 --------- Run | Yrd Mat Min Mat Sto Rec Total 2413 | 46 226 633 393 787 328 Wait 239 | . 23 37 94 70 15 Move 1969 | 36 166 569 267 639 292 Hop . | . . . . . . Pick Up 29 | 1 6 6 7 9 . Fast Attach 14 | 6 3 1 . 1 3 Attach 11 | . 1 3 4 2 1 Detach 7 | . 2 2 . 1 2 Swap 15 | 1 3 1 3 7 . Drop 29 | . 3 . 6 15 5 Fire 89 | . 19 14 12 36 8 Melee . | . . . . . . Ram 2 | . . . . . 2 Kick 6 | 2 . . . 4 . Crush . | . . . . . . Escape Stasis . | . . . . . . Rewire 3 | . . . . 3 . Trap . | . . . . . . Miscellaneous . | . . . . . . Route ------- -11/Scrapyard -10/Materials -10/Mines (discovered 2 exits: *Mat x2) -9/Materials -9/Storage (discovered 2 exits: [*Mat] / *Rec) -9/Recycling (discovered 1 exit: [*Fac]) History --------- Turn | Location | Event 12 | -11/Scrapyard | Discovered new exit (range 15) 57 | -11/Scrapyard | Entered Materials 305 | -10/Materials | Build established: Mutant 395 | -10/Materials | Discovered new exit (range 6) 408 | -10/Materials | Entered Mines 409 | -10/Mines | Learned location of Storage (-9) 490 | -10/Mines | A weapon hastily lodged in a ceiling crevice suddenly fell to the ground 567 | -10/Mines | Received a Rocket Launcher from a helpful Derelict 633 | -10/Mines | Learned location of Mines (-9) 646 | -10/Mines | Discovered new exit (range 9) 1518 | -10/Mines | Discovered new exit (range 13) 1576 | -10/Mines | Entered Materials 1576 | -9/Materials | Evolved 2 slots: Propulsion x2 1577 | -9/Materials | Identified exit to Storage 1883 | -9/Materials | Build established: Scavenger-Mutant 2041 | -9/Materials | Entered Storage 2389 | -9/Storage | Build established: Mutant 2400 | -9/Storage | Met 01-MTF 2530 | -9/Storage | Discovered new exit (range 6) 2669 | -9/Storage | Assisted by bots powering up and referring to "LRC-V3" 2821 | -9/Storage | Discovered new exit (range 15) 2975 | -9/Storage | Build established: Commander-Mutant 3015 | -9/Storage | Entered Recycling 3015 | -9/Recycling | Accompanied by 10 allies (01-MTF) 3016 | -9/Recycling | Met a Zionite searching for Scraptown 3138 | -9/Recycling | Discovered new exit (range 15) 3334 | -9/Recycling | Scanned before Scraplab entrance 3370 | -9/Recycling | Discovered new exit (range 3) 3384 | -9/Recycling | Angered Scraplab inhabitants 3386 | -9/Recycling | Found Prototype Device 3386 | -9/Recycling | Identified Scrap Engine 3407 | -9/Recycling | Core integrity fell below 50% 3411 | -9/Recycling | Core destroyed Last Messages --------------- 03406_ Thermabolt penetrates Wall. 03407_ Wall collapses. 03407_ JT-XNW(j) overheating. 03408_ JT-XNW(j) heat damages core (-6). 03408_ Penetrated by Thermabolt. 03408_ Thermabolt penetrates Reinforced Barrier. 03408_ Penetrated by Thermabolt. 03408_ Thermabolt penetrates 4H-XQR(j). 03408_ Penetrated by Thermabolt. 03408_ Thermabolt penetrates 4H-XQR(j). 03408_ Thermabolt penetrates Reinforced Barrier. 03409_ Slammed into 4H-XQR(j). 03409_ Destabilizing: System interference. 03409_ Scrap Engine temporarily disabled. 03409_ JT-XNW(j) overheating. 03410_ System corrupted: Heat flow error (+230). 03410_ Slammed into 4H-XQR(j). 03410_ JT-XNW(j) overheating. 03410_ Penetrated by Thermabolt. 03411_ Overheating: Core damaged (-72). Map ----- +----------------------------------------------------+ | | | | | | | | | | | | | | | | | | | | | | | | | | | | | | | | | | | | | | | | | | | ?????????????????????????????############????????? | | ?????????????????????????????#""" #< #????????? | | ???????????????????????????### " X% ##%#????????? | | ???????????????????????##### # * ! * h[#????????? | | ??????????????????????##j@ j *! *#????????? | | ??????????????????????# ##;## [!%[ #????????? | | ??????????????????????##*##### ==%% #????????? | | ???????????????????????# #???# & &!X* #????????? | | ???????????????????????# #???# " """" #????????? | | ????????????????????#### ################????????? | | ????????????????????# #????????????????????? | | ????????????????????# #??????????????????##? | | ????????????????????# [[ #????????????????## ## | | ????????????????????# #????????????????# | | ????????????????????####/####????????????????# | | ???????????????????????# #???????????###?###?# | | ???????????????????????# ############# ### ### | | ???????????????????????# # | | ????????????????????####+##### !=# | | ????????????????????# # %!# | | ????????????????????# + % %!=" | | ????????????????????# ###### [=# | | ????????????????????# #????##########%# | | ????????????????????# #?????????????#*# | | ????????????????????# #?##########??#=##### | | ????????????????????# #?# #??#%#???? | | ????????????????????# #?# T """ #??#!#???? | | ????????????????????# #?# """ #??#!#???? | | ????????????????????####+#####?# """ #??# #???? | +----------------------------------------------------+ Best States ------------- Heat Dissipation 28 Energy Generation 14 Energy Capacity 280 Matter Stores 300 Matter Capacity 300 Sight Range 16 Terrain Scan Density 10 Armor Coverage 225 Weapon Shielding 33 Evasion (%) 55 Item Schematics ----------------- None Robot Schematics ------------------ None Fabricated ------------ Nothing Alien Tech Used ----------------- None Achievements -------------- None Challenges ------------ None Game ------ Seed BiometalRemoteCutter Manual? 0 Play Time 00:20:17 Cumulative 71.8 hours Start 2024.11.21 @ 00:44:07 End 2024.11.21 @ 01:04:12 Sessions 1 Manual Loads 0 Difficulty Rogue Special Mode None Game No. 137 Rogue 137 Adventurer 0 Explorer 0 Win Type - Total 1 Types 1/0/0/0/0/0/0/0/0 Lore% 57 Gallery% 56 Achievement% 48 Wizard Run 0 Options --------- Layout 0 ASCII 0 Keyboard 1 Movement Numpad Keybinds 0 Fullscreen 2 Font 24/Terminus Map View 76x50 Zoom Use 0% Tactical HUD 1 Map Filters NONE Filters NONE Steam 1 RUN: 1977e2d0-4c05-4412-8f67-622303894694